[Event "Late-Titled-Tuesday-Blitz-September-12-2023"]
[Site "Chess.com"]
[Date "2023.09.12"]
[Round "4"]
[White "BlueWizzard"]
[Black "MagnusCarlsen"]
[Result "1/2-1/2"]
[WhiteElo "2949"]
[BlackElo "3213"]
[TimeControl "180+1"]
[EndTime "14:38:09 PDT"]
[Termination "Game drawn by repetition"]

1. e4 {[%clk 0:03:00.9]} 1... c5 {[%clk 0:02:59.4]} 2. Nf3 {[%clk 0:03:00.7]}
2... Nc6 {[%clk 0:03:00.1]} 3. g3 {[%clk 0:02:55.2]} 3... Nf6 {[%clk 0:02:58.4]}
4. Nc3 {[%clk 0:02:55.2]} 4... d6 {[%clk 0:02:52.6]} 5. d4 {[%clk 0:02:52.7]}
5... cxd4 {[%clk 0:02:51.1]} 6. Nxd4 {[%clk 0:02:53.6]} 6... g6 {[%clk
0:02:51.3]} 7. Nxc6 {[%clk 0:02:46.4]} 7... bxc6 {[%clk 0:02:51.2]} 8. e5 {[%clk
0:02:47.3]} 8... dxe5 {[%clk 0:02:52.1]} 9. Qxd8+ {[%clk 0:02:47.3]} 9... Kxd8
{[%clk 0:02:53]} 10. Bc4 {[%clk 0:02:47.3]} 10... Bg7 {[%clk 0:02:43.8]} 11. Bd2
{[%clk 0:02:46.4]} 11... Kc7 {[%clk 0:02:43.9]} 12. O-O-O {[%clk 0:02:46.4]}
12... a5 {[%clk 0:02:34.1]} 13. Rde1 {[%clk 0:02:39.1]} 13... e6 {[%clk
0:01:52]} 14. f4 {[%clk 0:02:23.4]} 14... e4 {[%clk 0:01:33.4]} 15. Rhg1 {[%clk
0:02:02.3]} 15... h5 {[%clk 0:01:28.9]} 16. h3 {[%clk 0:02:01.2]} 16... a4
{[%clk 0:01:27.7]} 17. g4 {[%clk 0:02:01.1]} 17... hxg4 {[%clk 0:01:27.5]} 18.
hxg4 {[%clk 0:02:02]} 18... a3 {[%clk 0:01:25.1]} 19. bxa3 {[%clk 0:01:47.5]}
19... Ba6 {[%clk 0:01:10.4]} 20. Bb3 {[%clk 0:01:32]} 20... c5 {[%clk
0:01:10.4]} 21. Nxe4 {[%clk 0:01:18.1]} 21... c4 {[%clk 0:01:01.6]} 22. Bc3
{[%clk 0:01:18.2]} 22... cxb3 {[%clk 0:00:55.6]} 23. Nxf6 {[%clk 0:01:10.4]}
23... bxa2 {[%clk 0:00:55.8]} 24. Kb2 {[%clk 0:00:58.9]} 24... Bc4 {[%clk
0:00:55.7]} 25. Re4 {[%clk 0:00:58.6]} 25... Ra4 {[%clk 0:00:54.8]} 26. g5
{[%clk 0:00:48.3]} 26... Bxf6 {[%clk 0:00:54.9]} 27. gxf6 {[%clk 0:00:48]} 27...
Kc6 {[%clk 0:00:45.3]} 28. Rd4 {[%clk 0:00:44.1]} 28... Rc8 {[%clk 0:00:21.4]}
29. Bb4 {[%clk 0:00:41.5]} 29... Kb6 {[%clk 0:00:12.4]} 30. Rd7 {[%clk
0:00:34.1]} 30... Ra7 {[%clk 0:00:12.2]} 31. Rd6+ {[%clk 0:00:24.3]} 31... Rc6
{[%clk 0:00:10.4]} 32. Rgd1 {[%clk 0:00:19]} 32... Bd5 {[%clk 0:00:09.9]} 33.
Rd8 {[%clk 0:00:14.1]} 33... Rac7 {[%clk 0:00:09.5]} 34. c3 {[%clk 0:00:11.5]}
34... Rc4 {[%clk 0:00:08.5]} 35. Rf1 {[%clk 0:00:06]} 35... Re4 {[%clk
0:00:08.1]} 36. Rd6+ {[%clk 0:00:06]} 36... Kb5 {[%clk 0:00:07.9]} 37. Ka1
{[%clk 0:00:04.1]} 37... Ka4 {[%clk 0:00:07.1]} 38. Rb6 {[%clk 0:00:04.1]} 38...
Rb7 {[%clk 0:00:03.6]} 39. Rd6 {[%clk 0:00:03.7]} 39... Kb3 {[%clk 0:00:03.5]}
40. Rc1 {[%clk 0:00:03.8]} 40... Re2 {[%clk 0:00:02.6]} 41. c4 {[%clk
0:00:03.6]} 41... Bxc4 {[%clk 0:00:03.1]} 42. Rc3+ {[%clk 0:00:03.6]} 42... Ka4
{[%clk 0:00:03.8]} 43. Rxc4 {[%clk 0:00:04.3]} 43... Kb3 {[%clk 0:00:03.7]} 44.
Rc3+ {[%clk 0:00:04.7]} 44... Ka4 {[%clk 0:00:04.6]} 45. Ra6+ {[%clk 0:00:03]}
45... Kb5 {[%clk 0:00:05.1]} 46. Rac6 {[%clk 0:00:03.9]} 46... Rd7 {[%clk
0:00:05]} 47. Rc2 {[%clk 0:00:03.9]} 47... Rxc2 {[%clk 0:00:03.6]} 48. Rxc2
{[%clk 0:00:04.8]} 48... Rd4 {[%clk 0:00:04.3]} 49. Kxa2 {[%clk 0:00:05.1]}
49... Rxf4 {[%clk 0:00:04.5]} 50. Kb3 {[%clk 0:00:05.3]} 50... Rxf6 {[%clk
0:00:04.2]} 51. a4+ {[%clk 0:00:06.1]} 51... Kb6 {[%clk 0:00:04.7]} 52. a5+
{[%clk 0:00:06.2]} 52... Kb7 {[%clk 0:00:05.4]} 53. Ka4 {[%clk 0:00:05]} 53...
Rf5 {[%clk 0:00:06.1]} 54. Bc5 {[%clk 0:00:04.9]} 54... Ka6 {[%clk 0:00:06.1]}
55. Bb4 {[%clk 0:00:04.1]} 55... Kb7 {[%clk 0:00:06.2]} 56. Rd2 {[%clk
0:00:04.1]} 56... Rd5 {[%clk 0:00:06.5]} 57. Rf2 {[%clk 0:00:03.1]} 57... Rf5
{[%clk 0:00:05.7]} 58. Rh2 {[%clk 0:00:03.8]} 58... g5 {[%clk 0:00:06.1]} 59.
Rd2 {[%clk 0:00:03.8]} 59... Rd5 {[%clk 0:00:06.1]} 60. Rf2 {[%clk 0:00:04]}
60... Rf5 {[%clk 0:00:05.3]} 61. Rd2 {[%clk 0:00:04.2]} 61... Rd5 {[%clk
0:00:05.5]} 62. Rg2 {[%clk 0:00:03.6]} 62... Ka6 {[%clk 0:00:05.2]} 63. Rf2
{[%clk 0:00:03.6]} 63... Rf5 {[%clk 0:00:05.1]} 64. Rc2 {[%clk 0:00:04.3]} 64...
Kb7 {[%clk 0:00:05.6]} 65. Rd2 {[%clk 0:00:04.7]} 1/2-1/2

[Event "Late-Titled-Tuesday-Blitz-September-12-2023"]
[Site "Chess.com"]
[Date "2023.09.12"]
[Round "4"]
[White "The_Princess_Moon"]
[Black "gmpeter008"]
[Result "0-1"]
[WhiteElo "2269"]
[BlackElo "2462"]
[TimeControl "180+1"]
[EndTime "14:38:18 PDT"]
[Termination "gmpeter008 won on time"]

1. e4 {[%clk 0:03:00.9]} 1... g6 {[%clk 0:02:54.9]} 2. d4 {[%clk 0:03:00.2]}
2... Bg7 {[%clk 0:02:51.6]} 3. Nf3 {[%clk 0:02:59.7]} 3... c6 {[%clk 0:02:48.9]}
4. Nc3 {[%clk 0:02:59]} 4... d5 {[%clk 0:02:47.9]} 5. e5 {[%clk 0:02:59]} 5...
Nh6 {[%clk 0:02:46.3]} 6. h3 {[%clk 0:02:58.1]} 6... f6 {[%clk 0:02:46.7]} 7.
Bxh6 {[%clk 0:02:56.5]} 7... Bxh6 {[%clk 0:02:47.3]} 8. exf6 {[%clk 0:02:55.9]}
8... exf6 {[%clk 0:02:47.4]} 9. Bd3 {[%clk 0:02:47.1]} 9... O-O {[%clk
0:02:47.3]} 10. O-O {[%clk 0:02:46]} 10... Na6 {[%clk 0:02:44.3]} 11. a3 {[%clk
0:02:44.8]} 11... Nc7 {[%clk 0:02:42.4]} 12. Re1 {[%clk 0:02:41.7]} 12... Ne6
{[%clk 0:02:42]} 13. Ne2 {[%clk 0:02:39.7]} 13... Qd6 {[%clk 0:02:39.7]} 14. c3
{[%clk 0:02:39]} 14... Ng7 {[%clk 0:02:35.5]} 15. Qc2 {[%clk 0:02:31.4]} 15...
Bd7 {[%clk 0:02:34.8]} 16. b3 {[%clk 0:02:29.5]} 16... Rae8 {[%clk 0:02:33.6]}
17. c4 {[%clk 0:02:21.5]} 17... Bf5 {[%clk 0:02:32.3]} 18. c5 {[%clk 0:02:13.4]}
18... Qd7 {[%clk 0:02:30.9]} 19. Bxf5 {[%clk 0:02:11.5]} 19... Qxf5 {[%clk
0:02:31.7]} 20. Qxf5 {[%clk 0:01:56.6]} 20... Nxf5 {[%clk 0:02:32.3]} 21. Nc3
{[%clk 0:01:37]} 21... Kf7 {[%clk 0:02:29.8]} 22. b4 {[%clk 0:01:35.5]} 22...
Bf4 {[%clk 0:02:23]} 23. a4 {[%clk 0:01:33.2]} 23... g5 {[%clk 0:02:21.5]} 24.
g3 {[%clk 0:01:32.8]} 24... Bc7 {[%clk 0:02:20.5]} 25. Kf1 {[%clk 0:01:25]}
25... h5 {[%clk 0:02:19.8]} 26. Rad1 {[%clk 0:01:10.9]} 26... h4 {[%clk
0:01:40.4]} 27. g4 {[%clk 0:01:06.7]} 27... Ng7 {[%clk 0:01:39]} 28. Rxe8 {[%clk
0:00:55.8]} 28... Rxe8 {[%clk 0:01:38.3]} 29. Re1 {[%clk 0:00:55.7]} 29... Rxe1+
{[%clk 0:01:37.9]} 30. Kxe1 {[%clk 0:00:54.4]} 30... Ne6 {[%clk 0:01:37.9]} 31.
Ne2 {[%clk 0:00:48.6]} 31... b6 {[%clk 0:01:23.3]} 32. Kd2 {[%clk 0:00:43.2]}
32... bxc5 {[%clk 0:01:21.4]} 33. dxc5 {[%clk 0:00:43.2]} 33... a5 {[%clk
0:01:20.7]} 34. Kc3 {[%clk 0:00:40.3]} 34... Kg6 {[%clk 0:01:10.5]} 35. Ned4
{[%clk 0:00:36.6]} 35... Nf4 {[%clk 0:00:38.1]} 36. b5 {[%clk 0:00:31.7]} 36...
Nxh3 {[%clk 0:00:35.6]} 37. b6 {[%clk 0:00:31.3]} 37... Bf4 {[%clk 0:00:33.3]}
38. b7 {[%clk 0:00:29.7]} 38... Nxf2 {[%clk 0:00:32.1]} 39. Nxc6 {[%clk
0:00:25.8]} 39... Nxg4 {[%clk 0:00:20.5]} 40. b8=Q {[%clk 0:00:19.6]} 40... Bxb8
{[%clk 0:00:20.4]} 41. Nxb8 {[%clk 0:00:20.5]} 41... h3 {[%clk 0:00:14.5]} 42.
c6 {[%clk 0:00:18.8]} 42... Ne5 {[%clk 0:00:13.6]} 43. Nxe5+ {[%clk 0:00:18.1]}
43... fxe5 {[%clk 0:00:13.3]} 44. c7 {[%clk 0:00:18.2]} 44... h2 {[%clk
0:00:13.4]} 45. c8=Q {[%clk 0:00:17.3]} 45... h1=Q {[%clk 0:00:13.6]} 46. Qe6+
{[%clk 0:00:14.9]} 46... Kh5 {[%clk 0:00:12]} 47. Qf7+ {[%clk 0:00:14.2]} 47...
Kg4 {[%clk 0:00:12.3]} 48. Qe6+ {[%clk 0:00:10.1]} 48... Kf4 {[%clk 0:00:08.7]}
49. Qf6+ {[%clk 0:00:09.3]} 49... Ke3 {[%clk 0:00:09.6]} 50. Qxe5+ {[%clk
0:00:09.1]} 50... Qe4 {[%clk 0:00:09.7]} 51. Qxg5+ {[%clk 0:00:08.7]} 51... Ke2
{[%clk 0:00:09.7]} 52. Qh5+ {[%clk 0:00:07.6]} 52... Ke1 {[%clk 0:00:09.2]} 53.
Qh8 {[%clk 0:00:05.4]} 53... Qc4+ {[%clk 0:00:08.7]} 54. Kb2 {[%clk 0:00:04.9]}
54... Qb4+ {[%clk 0:00:09]} 55. Kc2 {[%clk 0:00:05.1]} 55... Qxa4+ {[%clk
0:00:09.2]} 56. Kc3 {[%clk 0:00:03.3]} 56... Qa1+ {[%clk 0:00:08.7]} 57. Kd3
{[%clk 0:00:03.5]} 57... Qxh8 {[%clk 0:00:09.4]} 58. Nc6 {[%clk 0:00:04.3]}
58... Qf6 {[%clk 0:00:08.8]} 59. Nd4 {[%clk 0:00:02.3]} 59... a4 {[%clk
0:00:09]} 60. Nc2+ {[%clk 0:00:01.8]} 60... Kf2 {[%clk 0:00:09.1]} 61. Na3
{[%clk 0:00:02.1]} 61... Qf3+ {[%clk 0:00:09]} 0-1

[Event "Late-Titled-Tuesday-Blitz-September-12-2023"]
[Site "Chess.com"]
[Date "2023.09.12"]
[Round "4"]
[White "ckgchess"]
[Black "mishanick"]
[Result "1/2-1/2"]
[WhiteElo "2888"]
[BlackElo "3062"]
[TimeControl "180+1"]
[EndTime "14:38:21 PDT"]
[Termination "Game drawn by agreement"]

1. e4 {[%clk 0:03:00.9]} 1... c5 {[%clk 0:02:57.5]} 2. c3 {[%clk 0:02:59.8]}
2... Nf6 {[%clk 0:02:49.7]} 3. e5 {[%clk 0:03:00.2]} 3... Nd5 {[%clk 0:02:50.3]}
4. d4 {[%clk 0:03:01.1]} 4... cxd4 {[%clk 0:02:50.7]} 5. Bc4 {[%clk 0:03:01.8]}
5... Nb6 {[%clk 0:02:46.3]} 6. Bb3 {[%clk 0:03:02.1]} 6... d6 {[%clk 0:02:44.8]}
7. Nf3 {[%clk 0:03:02.2]} 7... Nc6 {[%clk 0:02:44.2]} 8. exd6 {[%clk 0:03:00.2]}
8... exd6 {[%clk 0:02:31.4]} 9. cxd4 {[%clk 0:02:46.5]} 9... d5 {[%clk
0:02:30.9]} 10. O-O {[%clk 0:02:46.3]} 10... Be7 {[%clk 0:02:31.5]} 11. h3
{[%clk 0:02:39.5]} 11... O-O {[%clk 0:02:31.6]} 12. Nc3 {[%clk 0:02:40]} 12...
Bf6 {[%clk 0:02:30.6]} 13. Re1 {[%clk 0:02:38.1]} 13... Bf5 {[%clk 0:02:28.2]}
14. Bf4 {[%clk 0:02:36.8]} 14... Rc8 {[%clk 0:02:26.4]} 15. Ne5 {[%clk 0:02:32]}
15... Re8 {[%clk 0:02:16.9]} 16. Qd2 {[%clk 0:01:44.2]} 16... Na5 {[%clk
0:01:59.2]} 17. Rad1 {[%clk 0:01:26.5]} 17... Nbc4 {[%clk 0:01:51.7]} 18. Nxc4
{[%clk 0:01:13.2]} 18... Rxe1+ {[%clk 0:01:34.8]} 19. Rxe1 {[%clk 0:01:11.6]}
19... Nxc4 {[%clk 0:01:35.7]} 20. Bxc4 {[%clk 0:01:04.4]} 20... dxc4 {[%clk
0:01:35.4]} 21. Be5 {[%clk 0:00:59.3]} 21... Be7 {[%clk 0:01:29.7]} 22. d5
{[%clk 0:00:55.3]} 22... Bd3 {[%clk 0:01:26.9]} 23. Qe3 {[%clk 0:00:37.6]} 23...
Bf8 {[%clk 0:00:41.1]} 24. Qxa7 {[%clk 0:00:35]} 24... b5 {[%clk 0:00:41.8]} 25.
a3 {[%clk 0:00:28.2]} 25... Qg5 {[%clk 0:00:41.4]} 26. Qe3 {[%clk 0:00:24.6]}
26... Qf5 {[%clk 0:00:23.8]} 27. Qg3 {[%clk 0:00:22]} 27... Re8 {[%clk
0:00:20.7]} 28. Re3 {[%clk 0:00:20.4]} 28... h6 {[%clk 0:00:09.8]} 29. Bd4
{[%clk 0:00:20]} 29... Rxe3 {[%clk 0:00:09.2]} 30. Qxe3 {[%clk 0:00:20.9]} 30...
b4 {[%clk 0:00:09.3]} 31. axb4 {[%clk 0:00:20.9]} 31... Bxb4 {[%clk 0:00:10.2]}
32. Bc5 {[%clk 0:00:18.1]} 32... Bxc3 {[%clk 0:00:07.7]} 33. bxc3 {[%clk
0:00:19]} 33... Qxd5 {[%clk 0:00:08.1]} 34. Bd4 {[%clk 0:00:17.5]} 34... f6
{[%clk 0:00:08.2]} 35. Qg3 {[%clk 0:00:16.7]} 35... Qe6 {[%clk 0:00:07.6]} 36.
f3 {[%clk 0:00:15.7]} 36... Kh7 {[%clk 0:00:07.6]} 37. Kh2 {[%clk 0:00:16.3]}
37... Qe2 {[%clk 0:00:07.5]} 38. Qc7 {[%clk 0:00:15.6]} 38... Qe6 {[%clk
0:00:07.5]} 39. Qg3 {[%clk 0:00:15.5]} 39... Qf5 {[%clk 0:00:07.4]} 40. Qd6
{[%clk 0:00:15.3]} 40... Bf1 {[%clk 0:00:06.3]} 41. Qg3 {[%clk 0:00:15.1]} 41...
Qc2 {[%clk 0:00:05.6]} 42. Kg1 {[%clk 0:00:15]} 42... Bd3 {[%clk 0:00:04]} 43.
Qc7 {[%clk 0:00:15.6]} 43... Qc1+ {[%clk 0:00:04.4]} 44. Kh2 {[%clk 0:00:15.9]}
44... Qg5 {[%clk 0:00:05]} 45. Qg3 {[%clk 0:00:11.6]} 45... Qf5 {[%clk
0:00:05.5]} 46. Qc7 {[%clk 0:00:11.5]} 46... h5 {[%clk 0:00:06]} 47. Qg3 {[%clk
0:00:11.4]} 47... Kh6 {[%clk 0:00:05.1]} 48. Be3+ {[%clk 0:00:11.4]} 48... Kh7
{[%clk 0:00:03.9]} 49. Bd4 {[%clk 0:00:12]} 49... Qe6 {[%clk 0:00:04.3]} 50. Qh4
{[%clk 0:00:11.6]} 50... Kg6 {[%clk 0:00:03.9]} 51. Qg3+ {[%clk 0:00:12]} 51...
Kh6 {[%clk 0:00:04]} 52. Qf4+ {[%clk 0:00:11.4]} 52... Kh7 {[%clk 0:00:04.5]}
53. Qh4 {[%clk 0:00:11.7]} 53... Qd5 {[%clk 0:00:04.4]} 54. Qg3 {[%clk
0:00:10.6]} 54... Qf5 {[%clk 0:00:03.3]} 55. Qc7 {[%clk 0:00:09.6]} 55... Bf1
{[%clk 0:00:02.3]} 56. Qg3 {[%clk 0:00:09.7]} 56... Kh6 {[%clk 0:00:02.7]} 57.
Be3+ {[%clk 0:00:09.7]} 57... Kh7 {[%clk 0:00:03.3]} 58. Bd4 {[%clk 0:00:10.1]}
58... Bd3 {[%clk 0:00:02.4]} 59. Qc7 {[%clk 0:00:09.5]} 59... Qg6 {[%clk
0:00:03.3]} 60. Qf4 {[%clk 0:00:09.4]} 60... Bf1 {[%clk 0:00:03]} 61. Qg3 {[%clk
0:00:08.9]} 61... Qc2 {[%clk 0:00:03.6]} 62. Kg1 {[%clk 0:00:09]} 62... Bd3
{[%clk 0:00:03.5]} 63. Qh4 {[%clk 0:00:09.3]} 63... Qc1+ {[%clk 0:00:03.7]} 64.
Kh2 {[%clk 0:00:09.4]} 64... Qg5 {[%clk 0:00:04.1]} 65. Qxg5 {[%clk 0:00:07.9]}
65... fxg5 {[%clk 0:00:05]} 66. Be3 {[%clk 0:00:08]} 66... Kg6 {[%clk
0:00:05.5]} 67. Bd4 {[%clk 0:00:08.5]} 1/2-1/2

[Event "Late-Titled-Tuesday-Blitz-September-12-2023"]
[Site "Chess.com"]
[Date "2023.09.12"]
[Round "4"]
[White "ManuMunoz01"]
[Black "nevermind242"]
[Result "0-1"]
[WhiteElo "2246"]
[BlackElo "2367"]
[TimeControl "180+1"]
[EndTime "14:38:21 PDT"]
[Termination "nevermind242 won by checkmate"]

1. e4 {[%clk 0:03:00]} 1... e6 {[%clk 0:02:57.5]} 2. d4 {[%clk 0:02:59.5]} 2...
d5 {[%clk 0:02:58]} 3. Nd2 {[%clk 0:02:58.8]} 3... Nc6 {[%clk 0:02:58.3]} 4. c3
{[%clk 0:02:55.5]} 4... e5 {[%clk 0:02:58.3]} 5. dxe5 {[%clk 0:02:52.8]} 5...
dxe4 {[%clk 0:02:56.3]} 6. Bb5 {[%clk 0:02:49.5]} 6... e3 {[%clk 0:02:46.5]} 7.
fxe3 {[%clk 0:02:45.3]} 7... Qd5 {[%clk 0:02:27.6]} 8. Bxc6+ {[%clk 0:02:43.5]}
8... Qxc6 {[%clk 0:02:28.5]} 9. Ngf3 {[%clk 0:02:43.4]} 9... Bg4 {[%clk
0:02:19.3]} 10. Nb3 {[%clk 0:02:21.6]} 10... Ne7 {[%clk 0:01:52.8]} 11. O-O
{[%clk 0:01:59.9]} 11... Ng6 {[%clk 0:01:51.6]} 12. Nbd4 {[%clk 0:01:20.2]}
12... Qd5 {[%clk 0:01:22.9]} 13. e4 {[%clk 0:01:04.1]} 13... Qxe4 {[%clk
0:00:52.2]} 14. Ng5 {[%clk 0:00:40.6]} 14... Bxd1 {[%clk 0:00:41.1]} 15. Nxe4
{[%clk 0:00:39.7]} 15... Ba4 {[%clk 0:00:17.5]} 16. Ng5 {[%clk 0:00:27.1]} 16...
Nxe5 {[%clk 0:00:16.7]} 17. Bf4 {[%clk 0:00:26.7]} 17... f6 {[%clk 0:00:17.2]}
18. Rae1 {[%clk 0:00:12.1]} 18... Bd6 {[%clk 0:00:13.5]} 19. Nge6 {[%clk
0:00:08.8]} 19... Kd7 {[%clk 0:00:07]} 20. Nxg7 {[%clk 0:00:08.2]} 20... Rhg8
{[%clk 0:00:07]} 21. Ngf5 {[%clk 0:00:08.1]} 21... c5 {[%clk 0:00:05.9]} 22. Nf3
{[%clk 0:00:05.5]} 22... Nxf3+ {[%clk 0:00:05.2]} 23. Rxf3 {[%clk 0:00:05.6]}
23... Bxf4 {[%clk 0:00:05.5]} 24. Rxf4 {[%clk 0:00:05.9]} 24... Bc6 {[%clk
0:00:06.1]} 25. Re7+ {[%clk 0:00:06]} 25... Kd8 {[%clk 0:00:05.6]} 26. g3 {[%clk
0:00:06.1]} 26... Rg5 {[%clk 0:00:05.5]} 27. Rxh7 {[%clk 0:00:05.7]} 27... Rg8
{[%clk 0:00:04.6]} 28. Ng7 {[%clk 0:00:04.7]} 28... Kc7 {[%clk 0:00:04]} 29.
Ne6+ {[%clk 0:00:04.2]} 29... Kb6 {[%clk 0:00:04.6]} 30. Rxf6 {[%clk 0:00:04.5]}
30... Rae8 {[%clk 0:00:04]} 31. Nf4 {[%clk 0:00:04.3]} 31... Re3 {[%clk
0:00:03.3]} 32. Kf2 {[%clk 0:00:05]} 32... Rge8 {[%clk 0:00:03.6]} 33. g4 {[%clk
0:00:04.2]} 33... Re1 {[%clk 0:00:03.8]} 34. Kg3 {[%clk 0:00:03.7]} 34... Rg1+
{[%clk 0:00:03.9]} 35. Kh4 {[%clk 0:00:04]} 35... Ree1 {[%clk 0:00:04.2]} 36.
Kg5 {[%clk 0:00:04.3]} 36... Re5+ {[%clk 0:00:04.3]} 37. Rf5 {[%clk 0:00:04.4]}
37... Re4 {[%clk 0:00:04.4]} 38. h4 {[%clk 0:00:04.3]} 38... Be8 {[%clk
0:00:04.1]} 39. Re7 {[%clk 0:00:04.1]} 39... Rxe7 {[%clk 0:00:03.6]} 40. Rf8
{[%clk 0:00:03.9]} 40... Bd7 {[%clk 0:00:04.5]} 41. Rf6+ {[%clk 0:00:02.5]}
41... Kc7 {[%clk 0:00:04.2]} 42. Nd5+ {[%clk 0:00:02.1]} 42... Kd8 {[%clk
0:00:04.7]} 43. Nxe7 {[%clk 0:00:01.9]} 43... Rxg4+ {[%clk 0:00:05.6]} 44. Kh5
{[%clk 0:00:01.7]} 44... Kxe7 {[%clk 0:00:06.5]} 45. Rg6 {[%clk 0:00:01.4]}
45... Rxg6 {[%clk 0:00:06.6]} 46. Kxg6 {[%clk 0:00:02.3]} 46... Kd6 {[%clk
0:00:06.6]} 47. h5 {[%clk 0:00:02.4]} 47... Ke5 {[%clk 0:00:07.2]} 48. h6 {[%clk
0:00:02.8]} 48... Bf5+ {[%clk 0:00:07.5]} 49. Kf7 {[%clk 0:00:02.7]} 49... Ke4
{[%clk 0:00:07.7]} 50. Ke7 {[%clk 0:00:03.1]} 50... Kd3 {[%clk 0:00:08.1]} 51.
Kd6 {[%clk 0:00:03.7]} 51... c4 {[%clk 0:00:08.1]} 52. Kc7 {[%clk 0:00:04.1]}
52... Kc2 {[%clk 0:00:08]} 53. b3 {[%clk 0:00:03.4]} 53... cxb3 {[%clk 0:00:06]}
54. axb3 {[%clk 0:00:03.9]} 54... Kxb3 {[%clk 0:00:06]} 55. Kxb7 {[%clk
0:00:04.4]} 55... a5 {[%clk 0:00:06.7]} 56. Kb6 {[%clk 0:00:03.5]} 56... a4
{[%clk 0:00:07.2]} 57. Kb5 {[%clk 0:00:03.3]} 57... a3 {[%clk 0:00:07.5]} 58. c4
{[%clk 0:00:03.9]} 58... a2 {[%clk 0:00:06.1]} 59. c5 {[%clk 0:00:04.8]} 59...
a1=Q {[%clk 0:00:06.4]} 60. c6 {[%clk 0:00:05.7]} 60... Qa4+ {[%clk 0:00:06.3]}
61. Kb6 {[%clk 0:00:05.8]} 61... Qb4+ {[%clk 0:00:06.7]} 62. Ka7 {[%clk
0:00:06]} 62... Qf8 {[%clk 0:00:06.8]} 63. c7 {[%clk 0:00:05.9]} 63... Qc8
{[%clk 0:00:07.4]} 64. Kb6 {[%clk 0:00:06]} 64... Kc4 {[%clk 0:00:07.9]} 65. h7
{[%clk 0:00:06.4]} 65... Bxh7 {[%clk 0:00:08.1]} 66. Ka7 {[%clk 0:00:06.1]}
66... Be4 {[%clk 0:00:09]} 67. Kb6 {[%clk 0:00:06.5]} 67... Qb7+ {[%clk
0:00:09.4]} 68. Ka5 {[%clk 0:00:07.4]} 68... Qb5# {[%clk 0:00:10]} 0-1

[Event "Late-Titled-Tuesday-Blitz-September-12-2023"]
[Site "Chess.com"]
[Date "2023.09.12"]
[Round "4"]
[White "h4parah5"]
[Black "Msb2"]
[Result "1-0"]
[WhiteElo "2955"]
[BlackElo "3102"]
[TimeControl "180+1"]
[EndTime "14:38:29 PDT"]
[Termination "h4parah5 won by checkmate"]

1. d4 {[%clk 0:03:00.9]} 1... d5 {[%clk 0:03:00.2]} 2. Nf3 {[%clk 0:03:00.8]}
2... e6 {[%clk 0:03:00.6]} 3. Bf4 {[%clk 0:03:01.3]} 3... c5 {[%clk 0:03:00.7]}
4. e3 {[%clk 0:03:01.5]} 4... Nc6 {[%clk 0:03:01.4]} 5. c3 {[%clk 0:02:59]} 5...
Bd6 {[%clk 0:03:02]} 6. Bg3 {[%clk 0:02:58.9]} 6... Nge7 {[%clk 0:03:02.2]} 7.
Bd3 {[%clk 0:02:58.3]} 7... O-O {[%clk 0:03:01.4]} 8. Nbd2 {[%clk 0:02:58.1]}
8... cxd4 {[%clk 0:03:02]} 9. exd4 {[%clk 0:02:58.1]} 9... f6 {[%clk 0:03:02.6]}
10. Bxd6 {[%clk 0:02:56.9]} 10... Qxd6 {[%clk 0:03:03.5]} 11. b4 {[%clk
0:02:45]} 11... Kh8 {[%clk 0:02:50.8]} 12. O-O {[%clk 0:02:41.2]} 12... e5
{[%clk 0:02:39.7]} 13. dxe5 {[%clk 0:02:41.3]} 13... fxe5 {[%clk 0:02:40.6]} 14.
Bc2 {[%clk 0:02:39.9]} 14... Qf6 {[%clk 0:02:34.8]} 15. b5 {[%clk 0:02:37.6]}
15... Nd8 {[%clk 0:02:13.9]} 16. Qe2 {[%clk 0:02:24.4]} 16... e4 {[%clk
0:02:14.1]} 17. Nd4 {[%clk 0:02:23]} 17... Ne6 {[%clk 0:02:14.8]} 18. Nxe6
{[%clk 0:02:19.3]} 18... Bxe6 {[%clk 0:02:15.7]} 19. c4 {[%clk 0:02:16.4]} 19...
Nf5 {[%clk 0:01:43.5]} 20. cxd5 {[%clk 0:02:15.6]} 20... Nd4 {[%clk 0:01:44]}
21. Qd1 {[%clk 0:02:15.9]} 21... Nxc2 {[%clk 0:01:25.5]} 22. Qxc2 {[%clk
0:02:14.3]} 22... Bxd5 {[%clk 0:01:26.2]} 23. Nxe4 {[%clk 0:02:05.6]} 23... Qg6
{[%clk 0:01:26.6]} 24. Rae1 {[%clk 0:01:57.8]} 24... Rae8 {[%clk 0:01:25.6]} 25.
f3 {[%clk 0:01:57.4]} 25... Bxe4 {[%clk 0:01:20.7]} 26. Rxe4 {[%clk 0:01:52.6]}
26... Qb6+ {[%clk 0:01:19.2]} 27. Kh1 {[%clk 0:01:49.6]} 27... Qxb5 {[%clk
0:01:16.7]} 28. Rb1 {[%clk 0:01:48]} 28... Qd7 {[%clk 0:00:59.6]} 29. Rd1 {[%clk
0:01:39.6]} 29... Qf7 {[%clk 0:00:59.6]} 30. h3 {[%clk 0:01:33.5]} 30... Rxe4
{[%clk 0:00:57.3]} 31. Qxe4 {[%clk 0:01:34.4]} 31... Re8 {[%clk 0:00:50.5]} 32.
Qa4 {[%clk 0:01:27.3]} 32... a6 {[%clk 0:00:41.2]} 33. Rd7 {[%clk 0:01:22.6]}
33... Re1+ {[%clk 0:00:41.1]} 34. Kh2 {[%clk 0:01:22.3]} 34... Qe8 {[%clk
0:00:42]} 35. Qd4 {[%clk 0:01:17.4]} 35... Qf8 {[%clk 0:00:21.6]} 36. Rxb7
{[%clk 0:01:02.1]} 36... Re6 {[%clk 0:00:18.7]} 37. a4 {[%clk 0:00:36.4]} 37...
h6 {[%clk 0:00:18.5]} 38. Qb4 {[%clk 0:00:30.9]} 38... Qf6 {[%clk 0:00:15]} 39.
Rb8+ {[%clk 0:00:29.4]} 39... Kh7 {[%clk 0:00:15.1]} 40. Qb1+ {[%clk 0:00:30]}
40... Qg6 {[%clk 0:00:09]} 41. Qxg6+ {[%clk 0:00:19.5]} 41... Kxg6 {[%clk
0:00:09.9]} 42. Ra8 {[%clk 0:00:15.7]} 42... Kf5 {[%clk 0:00:09.1]} 43. h4
{[%clk 0:00:14.8]} 43... g5 {[%clk 0:00:08.4]} 44. Kh3 {[%clk 0:00:13.6]} 44...
Rb6 {[%clk 0:00:07.4]} 45. Ra7 {[%clk 0:00:12.8]} 45... Rc6 {[%clk 0:00:07.3]}
46. a5 {[%clk 0:00:12.1]} 46... Kg6 {[%clk 0:00:05.8]} 47. g4 {[%clk 0:00:10.4]}
47... Kf6 {[%clk 0:00:04.9]} 48. Kg3 {[%clk 0:00:10]} 48... Kg6 {[%clk
0:00:03.6]} 49. h5+ {[%clk 0:00:08.3]} 49... Kf6 {[%clk 0:00:04]} 50. Kf2 {[%clk
0:00:07.6]} 50... Ke5 {[%clk 0:00:04.5]} 51. Ke3 {[%clk 0:00:08.3]} 51... Rc3+
{[%clk 0:00:04.3]} 52. Ke2 {[%clk 0:00:07.4]} 52... Rc6 {[%clk 0:00:04.4]} 53.
Kd3 {[%clk 0:00:07.6]} 53... Rd6+ {[%clk 0:00:02.9]} 54. Ke3 {[%clk 0:00:07]}
54... Rc6 {[%clk 0:00:03.1]} 55. Re7+ {[%clk 0:00:07.4]} 55... Kf6 {[%clk
0:00:03.2]} 56. Rd7 {[%clk 0:00:07.1]} 56... Ke5 {[%clk 0:00:03.5]} 57. Re7+
{[%clk 0:00:04.5]} 57... Kf6 {[%clk 0:00:03.8]} 58. Rb7 {[%clk 0:00:05.1]} 58...
Ke5 {[%clk 0:00:04.2]} 59. Rb6 {[%clk 0:00:05.1]} 59... Rxb6 {[%clk 0:00:02.8]}
60. axb6 {[%clk 0:00:06]} 60... Kd6 {[%clk 0:00:03.7]} 61. f4 {[%clk 0:00:06.6]}
61... gxf4+ {[%clk 0:00:04.5]} 62. Kxf4 {[%clk 0:00:06.2]} 62... a5 {[%clk
0:00:01.4]} 63. g5 {[%clk 0:00:06.6]} 63... a4 {[%clk 0:00:02]} 64. gxh6 {[%clk
0:00:05.6]} 64... a3 {[%clk 0:00:02.9]} 65. b7 {[%clk 0:00:05.7]} 65... Kc6
{[%clk 0:00:03.8]} 66. b8=Q {[%clk 0:00:05.8]} 66... a2 {[%clk 0:00:04]} 67.
Qa8+ {[%clk 0:00:05.8]} 67... Kc5 {[%clk 0:00:03.9]} 68. Qxa2 {[%clk 0:00:06.7]}
68... Kb4 {[%clk 0:00:04.8]} 69. Qe6 {[%clk 0:00:06.5]} 69... Kc3 {[%clk
0:00:05.7]} 70. h7 {[%clk 0:00:07.1]} 70... Kd2 {[%clk 0:00:06.6]} 71. h8=Q
{[%clk 0:00:07.7]} 71... Kc1 {[%clk 0:00:07.5]} 72. Qc4+ {[%clk 0:00:07.4]}
72... Kb1 {[%clk 0:00:07.3]} 73. Qb8+ {[%clk 0:00:07.6]} 73... Ka1 {[%clk
0:00:08.2]} 74. Qa4# {[%clk 0:00:07.8]} 1-0